fUST/lending_fUST_20250420
["ID","MTS","AMOUNT","RATE_DAILY","PERIOD"]
[358421451,1745116232231,-500.0,0.00018973,2]
[358421453,1745116232241,-504.00367501,0.00018973,2]
[358421454,1745116232250,-500.0,0.00018973,2]
[358421455,1745116232259,-500.0,0.00018973,2]
[358421456,1745116232269,-500.0,0.00018973,2]
[358421457,1745116232278,-207.4,0.00018989,2]
[358421458,1745116232287,-152.77995093,0.00018989,2]
[358421459,1745116232297,-407.4364607,0.00018989,2]
[358421460,1745116232308,-500.0,0.00018999,2]
[358421461,1745116232318,-500.0,0.00018999,2]
[358421462,1745116232327,-500.0,0.00018999,2]
[358421463,1745116232337,-500.0,0.00018999,2]
[358421464,1745116232346,-500.0,0.00018999,2]
[358421465,1745116232357,-500.0,0.00018999,2]
[358421466,1745116232366,-500.0,0.00018999,2]
[358421467,1745116232375,-381.7203238,0.00018999,2]
[358421488,1745116238120,-241.19689554,0.00018999,2]
[358421490,1745116238131,-370.18710515,0.00018999,2]
[358421495,1745116238174,-129.81289485,0.00018999,2]
[358421497,1745116238183,-370.18710515,0.00018999,2]
[358421549,1745116243231,-129.81289485,0.00018999,2]
[358421550,1745116243241,-500.0,0.00018999,2]
[358421551,1745116243251,-500.0,0.00018999,2]
[358421552,1745116243260,-500.0,0.00018999,2]
[358421553,1745116243270,-500.0,0.00018999,2]
[358421554,1745116243280,-464.28749674,0.00018999,2]
[358421562,1745116246128,-35.71250326,0.00018999,2]
[358421563,1745116246138,-500.0,0.00018999,2]
[358421564,1745116246148,-500.0,0.00018999,2]
[358421565,1745116246157,-500.0,0.00018999,2]
[358421566,1745116246169,-500.0,0.00018999,2]
[358421567,1745116246179,-500.0,0.00018999,2]
[358421568,1745116246189,-500.0,0.00018999,2]
[358421569,1745116246199,-500.0,0.00018999,2]
[358421570,1745116246208,-500.0,0.00018999,2]
[358421571,1745116246218,-448.1869592,0.00018999,2]
[358421572,1745116246227,-2170.6560531,0.00019,2]
[358421573,1745116246239,-1951.0,0.00019,2]
[358421574,1745116246250,-2874.18492575,0.00019,2]
[358421575,1745116246262,-1271.94520023,0.00019,2]
[358421576,1745116246273,-8021.26045996,0.00019,2]
[358421577,1745116277278,9127.12283729,0.00015,2]
[358421583,1745116743894,189.0,0.00018,2]
[358421584,1745116766608,189.0,0.0001801,2]
[358421587,1745116808487,642.02564323,0.00017881,2]
[358421595,1745117082127,195.1335575,0.00017871,2]
[358421673,1745117432221,-473.85128216,0.00018775,2]
[358421674,1745117432231,-300.65279346,0.00018797,2]
[358421675,1745117432241,-300.0,0.00018799,2]
[358421676,1745117432251,-300.0,0.00018799,2]
[358421677,1745117432260,-300.0,0.000188,2]
[358421678,1745117432270,-4730.86968136,0.000188,2]
[358421679,1745117432280,-151.0,0.00018889,2]
[358421680,1745117432289,-207.4,0.00018889,2]
[358421681,1745117432300,-5000.0,0.00018898,2]
[358421682,1745117432311,-595.46689027,0.00018899,2]
[358421683,1745117432320,-500.0,0.00018899,2]
[358421684,1745117432329,-400.91366759,0.00018899,2]
[358421685,1745117432339,-500.0,0.00018899,2]
[358421686,1745117432349,-500.0,0.00018899,2]
[358421687,1745117432358,-500.0,0.00018899,2]
[358421688,1745117432369,-500.0,0.00018899,2]
[358421689,1745117432378,-500.0,0.00018899,2]
[358421690,1745117432387,-500.0,0.00018899,2]
[358421691,1745117432396,-500.0,0.00018899,2]
[358421692,1745117432405,-500.0,0.00018899,2]
[358421693,1745117432415,-500.0,0.00018899,2]
[358421694,1745117432424,-300.27501023,0.00018899,2]
[358421695,1745117432434,-500.0,0.00018899,2]
[358421696,1745117432444,-500.0,0.00018899,2]
[358421697,1745117432454,-6276.02680162,0.000189,2]
[358421698,1745117432465,-68431.21077015,0.000189,2]
[358421699,1745117432475,-192803.93692598,0.000189,2]
[358421700,1745117432486,-61310.67082298,0.000189,2]
[358421712,1745117438435,-6204.33832564,0.00018899,3]
[358421714,1745117438445,-33836.47711328,0.000189,2]
[358421752,1745117440651,-1352.64554896,0.000189,2]
[358421753,1745117440665,-929.06,0.000189,2]
[358421754,1745117440676,-651.25141947,0.000189,2]
[358421755,1745117440703,-48347.50127488,0.000189,2]
[358421756,1745117443260,-2261.75805476,0.000189,2]
[358421757,1745117443314,-1527.26537925,0.000189,2]
[358421762,1745117446378,-353.0720424,0.000189,2]
[358421763,1745117446390,-4519.94841129,0.000189,2]
[358421764,1745117446402,-22106.41300675,0.000189,2]
[358421765,1745117446413,-152.29829703,0.000189,2]
[358421766,1745117446424,-4758.09391481,0.000189,2]
[358421768,1745117446436,-285.333694,0.000189,2]
[358421770,1745117446449,-1640.01433166,0.000189,2]
[358421773,1745117446462,-157.175571,0.000189,2]
[358421775,1745117446474,-158.832524,0.000189,2]
[358421777,1745117446486,-159.024358,0.000189,2]
[358421780,1745117446498,-159.024358,0.000189,2]
[358421781,1745117446509,-178.520159,0.000189,2]
[358421782,1745117446519,-151.0,0.000189,2]
[358421783,1745117446530,-500.0,0.00018973,2]
[358421784,1745117446544,-277.77060976,0.00018973,2]
[358421785,1745117446558,-504.4613824,0.00018973,2]
[358421786,1745117446571,-500.0,0.00018973,2]
[358421787,1745117446582,-500.0,0.00018973,2]
[358421788,1745117446594,-159.024358,0.00018973,2]
[358421789,1745117446606,-159.024358,0.00018973,2]
[358421790,1745117446618,-151.0,0.00018973,2]
[358421791,1745117446630,-153.20826,0.00018973,2]
[358421792,1745117446642,-152.0,0.00018977,2]
[358421793,1745117446653,-189.0,0.00018999,2]
[358421794,1745117446665,-189.0,0.00018999,2]
[358421795,1745117446677,-242.091,0.00018999,2]
[358421796,1745117446688,-190.11789839,0.00018999,2]
[358421797,1745117446699,-894.22543025,0.00018999,2]
[358421798,1745117446711,-499.999999,0.00019,2]
[358421799,1745117446722,-115714.89588409,0.00019,2]
[358421800,1745117446737,-443.970125,0.00019,2]
[358421805,1745117682339,296.0,0.0001801,2]
[358421812,1745118039135,2173.54177532,0.00018,2]
[358421817,1745118156429,258.47066983,4.9e-07,2]
[358421820,1745118403262,5075.7916289,0.00017762,2]
[358421875,1745118632478,-1035.26929238,0.00018575,2]
[358421876,1745118632488,-300.0,0.0001863,2]
[358421877,1745118632498,-272.55198691,0.00018675,2]
[358421878,1745118632507,-1585.81175343,0.00018699,2]
[358421879,1745118632517,-198.61581785,0.00018699,2]
[358421880,1745118632527,-504.44242588,0.00018773,2]
[358421881,1745118632536,-170.82925287,0.00018773,2]
[358421882,1745118632545,-500.0,0.00018773,2]
[358421884,1745118632555,-500.0,0.00018773,2]
[358421886,1745118632564,-502.23881917,0.00018773,2]
[358421888,1745118632573,-500.0,0.00018773,2]
[358421890,1745118632583,-500.0,0.00018773,2]
[358421892,1745118632592,-500.0,0.00018773,2]
[358421894,1745118632601,-500.0,0.00018773,2]
[358421896,1745118632611,-500.0,0.00018773,2]
[358421898,1745118632622,-500.0,0.00018773,2]
[358421900,1745118632631,-462.98824588,0.00018773,2]
[358421903,1745118632641,-288.8614323,0.00018773,2]
[358421905,1745118632650,-502.36843992,0.00018773,2]
[358421907,1745118632660,-500.0,0.00018773,2]
[358421909,1745118632669,-501.85238742,0.00018773,2]
[358421911,1745118632678,-402.0608826,0.00018773,2]
[358421913,1745118632687,-255.68461544,0.00018773,2]
[358421915,1745118632697,-500.0,0.00018773,2]
[358421917,1745118632706,-500.0,0.00018773,2]
[358421919,1745118632716,-207.4,0.00018788,2]
[358421921,1745118632725,-300.0,0.00018794,2]
[358421923,1745118632734,-300.0,0.00018795,2]
[358421925,1745118632743,-500.0,0.00018799,2]
[358421926,1745118632753,-265.68139023,0.00018799,2]
[358421927,1745118632762,-521.36629502,0.000188,2]
[358421928,1745118632775,-175745.88950444,0.000188,2]
[358421929,1745118632784,-1418.94395139,0.000189,2]
[358421930,1745118632793,-600.0,0.00018904,2]
[358421931,1745118632803,-709.384,0.00018975,2]
[358421932,1745118632812,-545.181,0.00018975,2]
[358421933,1745118632822,-2279.465,0.00018975,2]
[358421934,1745118632832,-406.717,0.00018975,2]
[358421935,1745118632841,-261.378,0.00018988,2]
[358421936,1745118632851,-236.88760689,0.00018999,2]
[358421937,1745118632861,-419.79,0.00019,2]
[358421938,1745118632870,-48245.42721757,0.00019,2]
[358421939,1745118632893,-41090.08579207,0.00019,2]
[358421945,1745118638687,-4101.31570885,0.00018799,2]
[358421990,1745118643402,-3526.0000005,0.00018799,2]
[358421991,1745118643413,-2907.7865542,0.00018799,2]
[358421992,1745118643457,-5188.7278708,0.00018799,2]
[358421996,1745118646544,-1600.0,0.00018799,2]
[358421997,1745118646557,-11727.6912219,0.00018799,2]
[358421998,1745118646654,-260.98444963,0.00018799,2]
[358422000,1745118664767,250.0,0.00017762,2]
[358422138,1745119846704,-945.96263426,0.000189,2]
[358422140,1745119846714,-300.0,0.000189,2]
[358422141,1745119846723,-300.0,0.00018999,2]
[358422142,1745119846733,-300.0,0.00018999,2]
[358422143,1745119846746,-343.10579429,0.00019,2]
[358422144,1745119846756,-5000.0,0.00019,2]
[358422145,1745119846765,-152.0,0.00019032,2]
[358422146,1745119846777,-152.0,0.00019032,2]
[358422147,1745119846786,-152.0,0.00019032,2]
[358422148,1745119846796,-152.0,0.00019032,2]
[358422149,1745119846805,-169.0,0.00019032,2]
[358422150,1745119846814,-152.0,0.00019032,2]
[358422151,1745119846824,-263.56536927,0.00019032,2]
[358422152,1745119846834,-319.0,0.00019032,2]
[358422153,1745119846843,-201.0,0.00019032,2]
[358422154,1745119846852,-202.9444468,0.00019032,2]
[358422155,1745119846862,-170.0882127,0.00019032,2]
[358422156,1745119846871,-319.0,0.00019032,2]
[358422157,1745119846881,-319.0,0.00019032,2]
[358422158,1745119846890,-319.0,0.00019032,2]
[358422159,1745119846900,-319.0,0.00019032,2]
[358422160,1745119846909,-319.0,0.00019032,2]
[358422161,1745119846919,-319.0,0.00019032,2]
[358422162,1745119846928,-313.33946063,0.00019032,2]
[358422163,1745119846937,-359.0,0.00019032,2]
[358422164,1745119846946,-359.0,0.00019032,2]
[358422165,1745119846956,-359.0,0.00019032,2]
[358422166,1745119846965,-359.0,0.00019032,2]
[358422167,1745119846975,-213.26454649,0.00019032,2]
[358422168,1745119846983,-9124.27705071,0.00019032,2]
[358422169,1745119846993,-251.466,0.00019042,2]
[358422170,1745119847003,-150.7,0.00019042,2]
[358422171,1745119847012,-150.297,0.00019042,2]
[358422172,1745119847022,-155.248,0.00019042,2]
[358422173,1745119847031,-246.67,0.00019042,2]
[358422174,1745119847040,-256.165,0.00019042,2]
[358422175,1745119847050,-172.339,0.00019042,2]
[358422176,1745119847059,-1565.2993567,0.00019064,2]
[358422177,1745119847068,-151.209,0.00019075,2]
[358422178,1745119847077,-402.0,0.00019075,2]
[358422179,1745119847086,-544.0,0.00019075,2]
[358422180,1745119847095,-708.0,0.00019075,2]
[358422181,1745119847105,-152.67359109,0.000191,2]
[358422182,1745119847114,-151.0,0.000191,2]
[358422183,1745119847123,-151.0,0.000191,2]
[358422184,1745119847132,-151.0,0.000191,2]
[358422185,1745119847141,-151.0,0.000191,2]
[358422186,1745119847151,-151.30515462,0.000191,2]
[358422187,1745119847160,-151.45601361,0.000191,2]
[358422188,1745119847169,-154.69051424,0.000191,2]
[358422189,1745119847178,-153.69161435,0.000191,2]
[358422190,1745119847187,-156.86831885,0.000191,2]
[358422191,1745119847197,-151.51901017,0.000191,2]
[358422192,1745119847206,-151.40506183,0.000191,2]
[358422193,1745119847215,-329.5,0.00019144,7]
[358422194,1745119847225,-152.65818334,0.0001916,2]
[358422195,1745119847235,-500.0,0.00019163,2]
[358422196,1745119847244,-301.15312547,0.00019163,2]
[358422197,1745119847254,-500.0,0.00019163,2]
[358422198,1745119847264,-500.0,0.00019163,2]
[358422199,1745119847274,-500.0,0.00019163,2]
[358422200,1745119847283,-500.0,0.00019163,2]
[358422201,1745119847293,-500.0,0.00019163,2]
[358422202,1745119847302,-500.0,0.00019163,2]
[358422203,1745119847311,-500.0,0.00019163,2]
[358422204,1745119847320,-500.0,0.00019163,2]
[358422205,1745119847329,-500.0,0.00019163,2]
[358422206,1745119847338,-262.78788493,0.00019163,2]
[358422207,1745119847348,-500.0,0.00019163,2]
[358422208,1745119847359,-500.0,0.00019163,2]
[358422209,1745119847368,-500.0,0.00019163,2]
[358422210,1745119847377,-500.0,0.00019163,2]
[358422211,1745119847387,-500.0,0.00019163,2]
[358422212,1745119847396,-500.0,0.00019163,2]
[358422213,1745119847406,-500.0,0.00019163,2]
[358422214,1745119847416,-500.0,0.00019163,2]
[358422215,1745119847426,-500.0,0.00019163,2]
[358422216,1745119847435,-500.0,0.00019163,2]
[358422217,1745119847445,-500.0,0.00019163,2]
[358422218,1745119847455,-500.0,0.00019163,2]
[358422219,1745119847465,-500.0,0.00019163,2]
[358422220,1745119847475,-500.0,0.00019163,2]
[358422221,1745119847484,-207.4,0.00019166,2]
[358422222,1745119847494,-6598.36855928,0.0001917,2]
[358422256,1745121031668,-300.0,0.000187,2]
[358422257,1745121031678,-312.30943141,0.00018718,2]
[358422258,1745121031699,-347.37043056,0.000188,2]
[358422259,1745121031710,-892.49562607,0.000189,2]
[358422260,1745121031720,-600.0,0.00018974,2]
[358422261,1745121031730,-1514.87253227,0.00019,2]
[358422262,1745121031740,-300.0,0.00019077,2]
[358422263,1745121031750,-300.0,0.00019077,2]
[358422264,1745121031760,-9277.28274849,0.00019078,2]
[358422265,1745121031770,-2248.0,0.00019137,2]
[358422266,1745121031780,-207.4,0.00019166,2]
[358422267,1745121031790,-8090.9004253,0.0001917,2]
[358422268,1745121031799,-263.267,0.0001917,2]
[358422269,1745121031810,-592.05840279,0.00019173,2]
[358422270,1745121031820,-500.0,0.00019173,2]
[358422271,1745121031830,-500.0,0.00019173,2]
[358422272,1745121031839,-500.0,0.00019173,2]
[358422273,1745121031849,-500.0,0.00019173,2]
[358422274,1745121031859,-536.99003111,0.00019173,2]
[358422276,1745121031869,-504.3984938,0.00019173,2]
[358422278,1745121031879,-500.0,0.00019173,2]
[358422280,1745121031888,-600.54936619,0.00019173,2]
[358422281,1745121031898,-500.0,0.00019173,2]
[358422284,1745121031908,-500.0,0.00019173,2]
[358422286,1745121031917,-500.0,0.00019173,2]
[358422288,1745121031927,-507.06156929,0.00019173,2]
[358422290,1745121031937,-500.0,0.00019173,2]
[358422292,1745121031946,-500.0,0.00019173,2]
[358422294,1745121031955,-268.70277896,0.00019173,2]
[358422296,1745121031965,-500.0,0.00019173,2]
[358422298,1745121031975,-500.0,0.00019173,2]
[358422300,1745121031984,-500.0,0.00019173,2]
[358422302,1745121031994,-500.0,0.00019173,2]
[358422304,1745121032003,-500.0,0.00019173,2]
[358422306,1745121032012,-500.0,0.00019173,2]
[358422308,1745121032021,-500.0,0.00019173,2]
[358422310,1745121032031,-500.0,0.00019173,2]
[358422312,1745121032040,-500.0,0.00019173,2]
[358422314,1745121032050,-500.0,0.00019173,2]
[358422316,1745121032060,-639.31284326,0.00019173,2]
[358422318,1745121032070,-500.0,0.00019173,2]
[358422321,1745121032079,-500.0,0.00019173,2]
[358422323,1745121032089,-500.0,0.00019173,2]
[358422324,1745121032098,-500.0,0.00019173,2]
[358422326,1745121032108,-500.0,0.00019173,2]
[358422328,1745121032117,-500.0,0.00019173,2]
[358422331,1745121032127,-500.0,0.00019173,2]
[358422333,1745121032136,-500.0,0.00019173,2]
[358422335,1745121032145,-500.0,0.00019173,2]
[358422337,1745121032155,-500.0,0.00019173,2]
[358422339,1745121032165,-500.0,0.00019173,2]
[358422341,1745121032174,-3221.38585579,0.00019175,2]
[358422343,1745121032187,-5680.9284551,0.00019175,2]
[358422346,1745121032202,-23202.91224308,0.00019175,2]
[358422366,1745121037893,-402.0,0.00019137,2]
[358422367,1745121037903,-4905.70757329,0.00019175,2]
[358422368,1745121037915,-500.0,0.00019175,2]
[358422392,1745121045822,-150.328,0.00019137,2]
[358422393,1745121045832,-2369.0517251,0.00019175,2]
[358422394,1745121045877,-31024.1129418,0.00019175,2]
[358422395,1745121045887,-500.0,0.00019175,2]
[358422396,1745121045896,-500.0,0.00019175,2]
[358422397,1745121045906,-500.0,0.00019175,2]
[358422398,1745121045916,-451.11390794,0.00019175,2]
[358422399,1745121045926,-317.14467839,0.00019175,2]
[358422401,1745121045936,-7771.82423875,0.00019178,3]
[358422403,1745121045945,-500.0,0.00019178,2]
[358422404,1745121045954,-500.0,0.00019178,2]
[358422405,1745121045963,-500.0,0.00019178,2]
[358422406,1745121045972,-679.12,0.00019178,2]
[358422407,1745121045982,-500.0,0.00019178,2]
[358422408,1745121045991,-151.0,0.00019178,2]
[358422409,1745121046000,-500.0,0.00019178,2]
[358422410,1745121046010,-380.62959375,0.00019178,2]
[358422411,1745121046020,-500.0,0.00019178,2]
[358422412,1745121046030,-500.0,0.00019178,2]
[358422413,1745121046039,-606.41549406,0.00019178,2]
[358422414,1745121046049,-500.0,0.00019178,2]
[358422415,1745121046058,-500.0,0.00019178,2]
[358422416,1745121046068,-528.21,0.00019178,2]
[358422417,1745121046077,-500.0,0.00019178,2]
[358422418,1745121046087,-750.96,0.00019178,2]
[358422419,1745121046107,-530.31,0.00019178,2]
[358422420,1745121046117,-500.0,0.00019178,2]
[358422421,1745121046127,-500.0,0.00019178,2]
[358422422,1745121046137,-500.0,0.00019178,2]
[358422423,1745121046147,-509.02,0.00019178,2]
[358422424,1745121046157,-500.0,0.00019178,2]
[358422425,1745121046167,-656.18,0.00019178,2]
[358422426,1745121046177,-889.88,0.00019178,2]
[358422427,1745121046186,-500.0,0.00019178,2]
[358422428,1745121046196,-500.0,0.00019178,2]
[358422429,1745121046205,-500.0,0.00019178,2]
[358422430,1745121046216,-726.12,0.00019178,2]
[358422431,1745121046226,-500.0,0.00019178,2]
[358422432,1745121046236,-500.0,0.00019178,2]
[358422433,1745121046246,-793.44,0.00019178,2]
[358422434,1745121046255,-500.0,0.00019178,2]
[358422435,1745121046265,-293.04243271,0.00019178,2]
[358422436,1745121046275,-500.0,0.00019178,2]
[358422437,1745121046284,-500.0,0.00019178,2]
[358422438,1745121046294,-500.0,0.00019178,2]
[358422439,1745121046304,-169.83277175,0.00019178,2]
[358422440,1745121046314,-631.48,0.00019178,2]
[358422441,1745121046324,-500.0,0.00019178,2]
[358422442,1745121046334,-1153.25,0.00019178,2]
[358422443,1745121046344,-500.0,0.00019178,2]
[358422444,1745121046354,-500.0,0.00019178,2]
[358422445,1745121046364,-175.94607741,0.00019178,2]
[358422446,1745121046374,-635.36,0.00019178,2]
[358422447,1745121046384,-500.0,0.00019178,2]
[358422448,1745121046394,-500.0,0.00019178,2]
[358422449,1745121046403,-500.0,0.00019178,2]
[358422450,1745121046413,-562.53,0.00019178,2]
[358422451,1745121046423,-500.0,0.00019178,2]
[358422452,1745121046432,-572.77,0.00019178,2]
[358422453,1745121046442,-500.0,0.00019178,2]
[358422454,1745121046451,-500.0,0.00019178,2]
[358422455,1745121046461,-500.0,0.00019178,2]
[358422456,1745121046471,-930.25,0.00019178,2]
[358422457,1745121046482,-500.0,0.00019178,2]
[358422458,1745121046492,-500.0,0.00019178,2]
[358422459,1745121046501,-508.47144436,0.00019178,2]
[358422460,1745121046512,-500.0,0.00019178,2]
[358422461,1745121046523,-548.92,0.00019178,2]
[358422462,1745121046532,-500.0,0.00019178,2]
[358422463,1745121046542,-500.0,0.00019178,2]
[358422464,1745121046552,-609.04,0.00019178,2]
[358422465,1745121046562,-1497.31,0.00019178,2]
[358422466,1745121046572,-504.03389715,0.00019178,2]
[358422467,1745121046581,-343.78698927,0.00019178,2]
[358422468,1745121046591,-594.97,0.00019178,2]
[358422469,1745121046600,-500.0,0.00019178,2]
[358422470,1745121046609,-500.0,0.00019178,2]
[358422471,1745121046619,-500.0,0.00019178,2]
[358422472,1745121046628,-500.0,0.00019178,2]
[358422473,1745121046637,-500.0,0.00019178,2]
[358422474,1745121046647,-500.0,0.00019178,2]
[358422475,1745121046657,-500.0,0.00019178,2]
[358422476,1745121046666,-500.0,0.00019178,2]
[358422477,1745121046676,-500.0,0.00019178,2]
[358422478,1745121046685,-500.0,0.00019178,2]
[358422479,1745121046695,-500.0,0.00019178,2]
[358422480,1745121046708,-661.86,0.00019178,2]
[358422481,1745121046718,-500.0,0.00019178,2]
[358422482,1745121046728,-500.0,0.00019178,2]
[358422483,1745121046738,-500.0,0.00019178,2]
[358422484,1745121046749,-203.25954675,0.00019178,2]
[358422485,1745121046758,-500.0,0.00019178,2]
[358422486,1745121046768,-500.0,0.00019178,2]
[358422487,1745121046778,-692.95,0.00019178,2]
[358422488,1745121047027,-266.49477427,0.00019178,2]
[358422489,1745121047037,-487.15404947,0.00019178,2]
[358422490,1745121047047,-500.0,0.00019178,2]
[358422491,1745121047056,-500.0,0.00019178,2]
[358422492,1745121047065,-560.72,0.00019178,2]
[358422493,1745121047075,-3307.76,0.00019178,2]
[358422494,1745121047085,-533.17,0.00019178,2]
[358422495,1745121047094,-696.96,0.00019178,2]
[358422496,1745121047103,-1052.36,0.00019178,2]
[358422497,1745121047114,-500.0,0.00019178,2]
[358422498,1745121047123,-587.64,0.00019178,2]
[358422499,1745121047133,-567.51,0.00019178,2]
[358422500,1745121047142,-500.0,0.00019178,2]
[358422501,1745121047153,-1136.9,0.00019178,2]
[358422502,1745121047164,-666.42,0.00019178,2]
[358422503,1745121047175,-500.0,0.00019178,2]
[358422504,1745121047184,-500.0,0.00019178,2]
[358422505,1745121047194,-500.0,0.00019178,2]
[358422506,1745121047203,-500.0,0.00019178,2]
[358422507,1745121047213,-500.0,0.00019178,2]
[358422508,1745121047223,-151.0,0.00019178,2]
[358422509,1745121047235,-267.37055029,0.00019178,2]
[358422510,1745121047246,-151.0,0.00019178,2]
[358422511,1745121047256,-500.0,0.00019178,2]
[358422512,1745121047266,-500.0,0.00019178,2]
[358422513,1745121047275,-500.0,0.00019178,2]
[358422514,1745121047285,-790.02,0.00019178,2]
[358422515,1745121047295,-500.0,0.00019178,2]
[358422516,1745121047305,-500.0,0.00019178,2]
[358422517,1745121047314,-642.11,0.00019178,2]
[358422518,1745121047323,-500.0,0.00019178,2]
[358422519,1745121047333,-500.0,0.00019178,2]
[358422520,1745121047343,-680.31,0.00019178,2]
[358422521,1745121047352,-1266.5,0.00019178,2]
[358422522,1745121047362,-500.0,0.00019178,2]
[358422523,1745121047371,-561.59,0.00019178,2]
[358422524,1745121047380,-500.0,0.00019178,2]
[358422525,1745121047390,-500.0,0.00019178,2]
[358422526,1745121047399,-500.0,0.00019178,2]
[358422527,1745121047408,-500.0,0.00019178,2]
[358422528,1745121047418,-78.62983152,0.00019178,2]
[358422533,1745121190048,312.86713016,0.0001264,2]
[358422534,1745121190380,312.86713016,0.00013076,2]
[358422535,1745121190692,312.86713016,0.0001319,2]
[358422536,1745121191025,312.86713016,0.00013635,2]
[358422537,1745121191340,312.86713016,0.00013806,2]
[358422538,1745121192309,312.86713016,0.00013975,2]
[358422539,1745121192511,312.86713016,0.00014286,2]
[358422540,1745121192891,312.86713016,0.00014571,2]
[358422541,1745121193212,312.86713016,0.00014892,2]
[358422542,1745121193525,312.86713016,0.00015069,2]
[358422543,1745121193895,312.86713016,0.0001554,2]
[358422544,1745121194273,312.86713016,0.0001564,2]
[358422545,1745121194591,312.86713016,0.00015952,2]
[358422546,1745121194911,312.86713016,0.00016408,2]
[358422547,1745121195239,312.86713016,0.00016452,2]
[358422548,1745121195539,312.86713016,0.00016931,2]
[358422549,1745121195844,312.86713016,0.00017162,2]
[358422550,1745121196158,300.0,0.00017312,2]
[358422551,1745121196184,12.86713016,0.00017312,2]
[358422552,1745121196473,312.86713016,0.00017746,2]
[358422553,1745121196779,312.86713016,0.00017969,2]
[358422559,1745121325544,312.86713017,0.00016031,2]
[358422560,1745121325712,312.86713017,0.00016398,2]
[358422561,1745121326049,312.86713017,0.00016539,2]
[358422562,1745121326358,182.02433007,0.00016782,2]
[358422563,1745121326382,130.8428001,0.00016782,2]
[358422564,1745121326671,312.86713017,0.00017165,2]
[358422565,1745121327001,312.86713017,0.0001748,2]
[358422566,1745121327338,312.86713017,0.00017546,2]
[358422567,1745121327654,312.86713017,0.00017978,2]
[358422570,1745121440281,312.86713017,0.00017286,2]
[358422571,1745121440586,312.86713017,0.00017592,2]
[358422572,1745121440907,312.86713017,0.00017985,2]
[358422574,1745121562847,312.86713017,0.00017901,2]
[358422580,1745122048687,312.86713018,0.00017036,2]
[358422581,1745122049024,312.86713018,0.00017527,2]
[358422582,1745122049344,312.86713018,0.00017744,2]
[358422583,1745122049656,312.86713018,0.00017975,2]
[358422587,1745122211418,241.38995462,0.0001801,2]
[358422593,1745122231902,-300.0,0.0001863,2]
[358422595,1745122231912,-312.86713018,0.00018699,2]
[358422597,1745122231922,-594.99708405,0.000189,2]
[358422599,1745122231931,-702.93279694,0.00018904,2]
[358422601,1745122231941,-300.0,0.00018999,2]
[358422603,1745122231950,-361.1558387,0.00019,2]
[358422605,1745122231959,-153.0,0.00019,2]
[358422607,1745122231969,-183.11163684,0.00019,2]
[358422609,1745122231979,-183.11163681,0.00019026,2]
[358422611,1745122231988,-183.11163681,0.00019052,2]
[358422613,1745122231998,-300.0,0.00019077,2]
[358422615,1745122232009,-500.0,0.00019077,2]
[358422617,1745122232018,-404.36809369,0.00019077,2]
[358422619,1745122232027,-183.11163681,0.00019078,2]
[358422621,1745122232037,-59865.46985139,0.00019078,2]
[358422623,1745122232046,-312.86713018,0.00019079,2]
[358422624,1745122232056,-1126.4427231,0.000191,2]